fUST/lending_fUST_20240330
["ID","MTS","AMOUNT","RATE_DAILY","PERIOD"]
[320990688,1711732239102,-594.8350106,0.00033281,2]
[320990690,1711732239111,-24900.0,0.00033499,2]
[320990692,1711732239121,-3048.42469815,0.00033603,4]
[320991161,1711732243895,-487.77023811,0.00033603,4]
[320991175,1711732244022,-1045.0271767,0.00033603,4]
[320991177,1711732244031,-445.12506982,0.00033761,2]
[320991180,1711732244041,-462.99773201,0.00034508,4]
[320991183,1711732244051,-840.29180009,0.0003451,2]
[320991186,1711732244061,-172.377674,0.00034613,2]
[320991189,1711732244071,-1262.34801093,0.00034728,12]
[320991192,1711732244081,-1000.0,0.00034999,2]
[320991193,1711732244092,-472.82532206,0.00034999,7]
[320991195,1711732244101,-500.0,0.00034999,7]
[320991198,1711732244111,-500.0,0.00034999,7]
[320991200,1711732244121,-500.0,0.00034999,7]
[320991202,1711732244131,-500.0,0.00034999,7]
[320991204,1711732244141,-500.0,0.00034999,7]
[320991206,1711732244151,-500.0,0.00034999,7]
[320991208,1711732244162,-500.0,0.00034999,7]
[320991209,1711732244171,-500.0,0.00034999,7]
[320991212,1711732244181,-250.46619738,0.00034999,7]
[320991554,1711732247494,-0.23447793,0.00034999,7]
[320995312,1711732341288,-2585.28228153,0.00031996,4]
[320995313,1711732341310,-442.27332829,0.00031997,4]
[320995314,1711732341332,-5155.44439018,0.00031998,4]
[320995315,1711732415032,-155.03875969,0.00031997,4]
[320995316,1711732415056,-2296.37579756,0.00031998,4]
[320995317,1711732415080,-326.5469259,0.00032,4]
[320995318,1711732415104,-4793.03851685,0.00032154,120]
[320995319,1711732493679,-307.0,0.00031661,2]
[320995320,1711732562342,-533.60060641,0.00031658,4]
[320995321,1711732562363,-155.03875969,0.00031659,4]
[320995322,1711732562383,-1885.3606339,0.00031659,4]
[320995323,1711732632590,-598.66336327,0.00031658,2]
[320995324,1711732632611,-21.33663673,0.00031659,4]
[320995340,1711732764138,-81.75812613,0.00031659,4]
[320995341,1711732764159,-157.303427,0.00031659,2]
[320995342,1711732764182,-9.93844687,0.00031661,2]
[320995343,1711732830162,-283.70722283,0.00031503,2]
[320995344,1711732830184,-28.29277717,0.00032154,120]
[320995345,1711732964494,-30873.0,0.00032222,4]
[320995346,1711733051713,-533.60060641,0.00032099,4]
[320995347,1711733051740,-987.96573052,0.00032099,4]
[320995348,1711733051767,-227.04816718,0.00032152,4]
[320995349,1711733051787,-533.60060641,0.00032153,4]
[320995350,1711733051802,-987.96573052,0.00032153,4]
[320995351,1711733051818,-227.04816718,0.00032153,4]
[320995352,1711733051830,-46502.77099178,0.00032153,4]
[320995353,1711733246602,223.87724442,0.00031105,2]
[320995356,1711733343692,-34373.94038408,0.00031111,12]
[320995357,1711733356906,21394.74296483,0.00031105,4]
[320995358,1711733357897,172.377674,0.00030191,2]
[320995370,1711733370579,-1748.61450411,0.00031111,12]
[320995373,1711733375603,189.13814855,0.00030122,2]
[320995374,1711733378497,3638.855889,0.00030895,120]
[320995377,1711733422906,16116.58956738,0.00030191,4]
[320995378,1711733429227,635.20301271,0.00030191,4]
[320995394,1711733433788,2629.21549911,0.00030191,4]
[320995395,1711733433821,13400.24770446,0.00030191,4]
[320995443,1711733438030,-187.58353257,0.00031011,2]
[320995445,1711733438039,-1991.92836,0.00031187,2]
[320995447,1711733438048,-500.0,0.00031203,2]
[320995449,1711733438057,-500.0,0.00031203,2]
[320995451,1711733438066,-500.0,0.00031203,2]
[320995453,1711733438077,-500.0,0.00031203,2]
[320995455,1711733438086,-147.41861892,0.00031203,2]
[320995642,1711733439991,-352.58138108,0.00031203,2]
[320995644,1711733440001,-500.0,0.00031203,2]
[320995646,1711733440010,-500.0,0.00031203,2]
[320995647,1711733440019,-500.0,0.00031203,2]
[320995649,1711733440029,-500.0,0.00031203,2]
[320995651,1711733440038,-500.0,0.00031203,2]
[320995653,1711733440047,-500.0,0.00031203,2]
[320995655,1711733440056,-500.0,0.00031203,2]
[320995657,1711733440065,-500.0,0.00031203,2]
[320995659,1711733440074,-500.0,0.00031203,2]
[320995661,1711733440083,-500.0,0.00031203,2]
[320995663,1711733440092,-500.0,0.00031203,2]
[320995665,1711733440102,-500.0,0.00031203,2]
[320995667,1711733440110,-500.0,0.00031203,2]
[320995668,1711733440119,-500.0,0.00031203,2]
[320995670,1711733440129,-500.0,0.00031203,2]
[320995672,1711733440138,-500.0,0.00031203,2]
[320995674,1711733440147,-500.0,0.00031203,2]
[320995676,1711733440156,-236.3957864,0.00031203,2]
[320995678,1711733440165,-500.0,0.00031203,2]
[320995680,1711733440174,-500.0,0.00031203,2]
[320995682,1711733440183,-500.0,0.00031203,2]
[320995684,1711733440196,-500.0,0.00031203,2]
[320995686,1711733440205,-500.0,0.00031203,2]
[320995688,1711733440214,-500.0,0.00031203,2]
[320995690,1711733440225,-500.0,0.00031203,2]
[320995691,1711733440235,-500.0,0.00031203,2]
[320995693,1711733440244,-500.0,0.00031203,2]
[320995695,1711733440253,-500.0,0.00031203,2]
[320995697,1711733440262,-500.0,0.00031203,2]
[320995699,1711733440271,-500.0,0.00031203,2]
[320995701,1711733440282,-500.0,0.00031203,2]
[320995703,1711733440291,-500.0,0.00031203,2]
[320995704,1711733440300,-500.0,0.00031203,2]
[320995705,1711733440309,-500.0,0.00031203,2]
[320995706,1711733440317,-500.0,0.00031203,2]
[320995707,1711733440326,-500.0,0.00031203,2]
[320995708,1711733440335,-500.0,0.00031203,2]
[320995709,1711733440344,-400.0,0.00031204,2]
[320995710,1711733440352,-14791.00142072,0.00031204,4]
[320995711,1711733440381,-33221.56379266,0.00031204,4]
[320995712,1711733440389,-10110.99032285,0.00031205,2]
[320995731,1711733440721,155.16602765,0.00030191,4]
[320995751,1711733440908,3092.33486879,0.00030191,4]
[320996135,1711733446191,-1.23919547,0.00031205,2]
[320996138,1711733451757,4887.35614147,0.00030191,4]
[320996140,1711733462711,194.1767991,0.00030191,4]
[320996141,1711733487989,255.46506948,0.00030191,2]
[320996151,1711733525452,34380.33552425,0.00031,2]
[320996152,1711733549705,-2788.00314656,0.00031198,120]
[320996153,1711733567094,2706.91920971,0.00031194,120]
[320996154,1711733569983,13387.3904816,0.00030199,2]
[320996155,1711733612990,421.11284937,0.00030199,2]
[320996156,1711733617995,-992.31972171,0.00031194,120]
[320996157,1711733631082,206.80417145,0.00030199,2]
[320996158,1711733638814,151.93261768,0.00040681,36]
[320996159,1711733671267,-2652.65419304,0.000312,120]
[320996160,1711733671292,-287.79834364,0.00031201,120]
[320996161,1711733739571,5329.9553201,0.0003015,2]
[320996162,1711733789048,104525.05536929,0.0003,2]
[320996163,1711733803476,199.70028141,0.00030997,2]
[320996164,1711734002146,750.0,0.00030201,120]
[320996165,1711734002177,1979.141916,0.00030201,120]
[320996166,1711734094206,199.99999901,0.0003,2]
[320996167,1711734183610,1768.111636,0.00030078,2]
[320996170,1711734303569,166.95776955,0.00030947,5]
[320996171,1711734319653,1373.70666953,0.00030999,2]
[320996172,1711734393194,-155.00310006,0.00031036,4]
[320996173,1711734393233,-1404.33822439,0.00031036,4]
[320996174,1711734393270,-6840.65867555,0.00031036,5]
[320996175,1711734407889,155.00310006,0.00030569,4]
[320996176,1711734411352,925.66693327,0.00030999,4]
[320996177,1711734425740,277.42877422,0.00030569,4]
[320996178,1711734438226,-7182.29843087,0.00031032,4]
[320996179,1711734438259,-633.63033969,0.00031032,4]
[320996180,1711734438286,-210.47568013,0.00031033,4]
[320996181,1711734438316,-4337.10583109,0.00031033,4]
[320996182,1711734438341,-275.42030674,0.00031034,4]
[320996183,1711734438366,-419.98793546,0.00031034,4]
[320996184,1711734438391,-434.17960977,0.00031034,4]
[320996185,1711734438416,-3593.38422365,0.00031036,5]
[320996186,1711734438441,-1482.95,0.00031046,4]
[320996187,1711734438465,-716.76277586,0.00031194,4]
[320996188,1711734438494,-2276.46634613,0.00031198,4]
[320996189,1711734438521,-2180.82905316,0.00031199,4]
[320996190,1711734438545,-1570.06739412,0.000312,4]
[320996191,1711734448993,167.1046727,0.00031194,4]
[320996192,1711734450102,214.36992118,0.00031194,4]
[320996193,1711734451444,4257.96747945,0.00031194,5]
[320996194,1711734453908,19347.27343291,0.00030999,4]
[320996195,1711734457293,209.88368679,0.00030999,4]
[320996196,1711734530972,2046.856437,0.00030153,120]
[320996302,1711734632106,-598.66336327,0.00031021,2]
[320996304,1711734632115,-2107.5573649,0.00031022,2]
[320996306,1711734632124,-419.98793546,0.00031023,4]
[320996308,1711734632133,-4788.19895391,0.00031023,4]
[320996310,1711734632143,-1162.51872027,0.00031024,4]
[320996312,1711734632153,-166.95776954,0.00031092,5]
[320996314,1711734632164,-187.58353257,0.00031099,2]
[320996315,1711734632174,-10099.4286685,0.00031161,5]
[320996318,1711734632185,-300.0,0.00031192,3]
[320996320,1711734632195,-1441.12754584,0.00031193,2]
[320996321,1711734632204,-312.94713509,0.00031193,4]
[320996323,1711734632214,-1664.74978505,0.00031193,4]
[320996326,1711734632223,-378.56144124,0.00031194,4]
[320996328,1711734632233,-945.13120765,0.00031195,2]
[320996331,1711734632244,-333.0,0.00031195,2]
[320996334,1711734632253,-352.42303738,0.00031201,4]
[320996337,1711734632264,-1373.7066695,0.00031974,2]
[320996340,1711734632274,-423.84819001,0.000321,2]
[320996344,1711734632284,-609.82926445,0.0003222,4]
[320996347,1711734632294,-155.088218,0.00032221,2]
[320996351,1711734632304,-281.216972,0.00032221,2]
[320996354,1711734632313,-151.0,0.00032221,2]
[320996357,1711734632322,-3704.91014556,0.00032221,4]
[320996359,1711734632332,-225.20951254,0.00032495,2]
[320996361,1711734632341,-208.279948,0.00032876,2]
[320996364,1711734632351,-208.279948,0.00032876,2]
[320996367,1711734632361,-1000.0,0.00032876,2]
[320996370,1711734632370,-1000.0,0.00032876,5]
[320996373,1711734632380,-1000.0,0.00032876,8]
[320996375,1711734632389,-151.0,0.00032876,2]
[320996377,1711734632398,-151.0,0.00032876,2]
[320996379,1711734632407,-154.243656,0.00032948,2]
[320996383,1711734632417,-506.891966,0.00032948,2]
[320996386,1711734632426,-506.891966,0.00032948,2]
[320996388,1711734632435,-1373.7066695,0.00032949,2]
[320996390,1711734632444,-608.920284,0.00032999,2]
[320996392,1711734632454,-608.920284,0.00032999,2]
[320996394,1711734632463,-152.585039,0.00032999,2]
[320996395,1711734632473,-162.40461935,0.00033,4]
[320996397,1711734632483,-151.0,0.00033923,2]
[320996399,1711734632493,-151.0,0.00033923,2]
[320996401,1711734632502,-1373.7066695,0.00033923,2]
[320996403,1711734632511,-462.99773201,0.00034,4]
[320996405,1711734632520,-333.0,0.00034195,2]
[320996414,1711734632595,-1373.7066695,0.00034898,2]
[320996416,1711734632606,-1000.0,0.00034989,2]
[320996418,1711734632617,-363.88723314,0.00034997,4]
[320996420,1711734632626,-268.03305386,0.00034998,4]
[320996421,1711734632636,-1641.95959765,0.00034998,4]
[320996424,1711734632646,-821.97421377,0.00034998,4]
[320996425,1711734632656,-5545.8726255,0.00034998,4]
[320996426,1711734632666,-502.80777362,0.00034998,4]
[320996427,1711734632677,-301.94084716,0.00034998,4]
[320996428,1711734632688,-500.0,0.00034998,7]
[320996429,1711734632697,-555.57404293,0.00034998,7]
[320996430,1711734632708,-500.0,0.00034998,7]
[320996431,1711734632718,-500.0,0.00034998,7]
[320996432,1711734632726,-500.0,0.00034998,7]
[320996433,1711734632739,-500.0,0.00034998,7]
[320996434,1711734632749,-500.0,0.00034998,7]
[320996435,1711734632758,-500.0,0.00034998,7]
[320996436,1711734632768,-500.0,0.00034998,7]
[320996437,1711734632778,-500.0,0.00034998,7]
[320996438,1711734632789,-500.0,0.00034998,7]
[320996439,1711734632799,-619.52935963,0.00034998,7]
[320996440,1711734632809,-500.0,0.00034998,7]
[320996441,1711734632819,-500.0,0.00034998,7]
[320996442,1711734632829,-500.0,0.00034998,7]
[320996443,1711734632840,-187.51882893,0.00034998,7]
[320996444,1711734632850,-151.0,0.00034998,2]
[320996445,1711734632861,-208.279948,0.00034998,2]
[320996446,1711734632872,-208.279948,0.00034998,2]
[320996447,1711734632883,-677.12272152,0.00034998,11]
[320996452,1711734632950,-322.87727848,0.00034998,11]
[320996454,1711734632960,-151.0,0.00034998,2]
[320996456,1711734632970,-153.516337,0.00034998,2]
[320996458,1711734632980,-281.216972,0.00034998,2]
[320996459,1711734632991,-151.0,0.00034998,2]
[320996460,1711734633001,-506.891966,0.00034998,2]
[320996462,1711734633010,-181.70925487,0.00034998,2]
[320996463,1711734633022,-325.18271113,0.00034998,2]
[320996464,1711734633032,-151.0,0.00034998,2]
[320996465,1711734633043,-13830.93338882,0.00034999,4]
[320996499,1711734638222,-983.86654576,0.00031193,2]
[320996509,1711734638299,-508.15050826,0.00031193,2]
[320996511,1711734638313,-475.7160375,0.00031193,2]
[320996513,1711734638322,-983.86654576,0.00031193,2]
[320996515,1711734638332,-181.24710021,0.00031193,2]
[320996517,1711734638343,-802.61944555,0.00031193,2]
[320996519,1711734638353,-983.86654576,0.00031193,2]
[320996521,1711734638362,-983.86654576,0.00031193,2]
[320996524,1711734638372,-983.86654576,0.00031193,2]
[320996526,1711734638381,-502.79180311,0.00031193,2]
[320996528,1711734638394,-481.07474265,0.00031193,2]
[320996530,1711734638403,-213.26525735,0.00031193,2]
[320996739,1711734640272,-770.60128841,0.00031193,2]
[320996742,1711734640282,-983.86654576,0.00031193,2]
[320996744,1711734640292,-983.86654576,0.00031193,2]
[320996747,1711734640302,-983.86654576,0.00031193,2]
[320996750,1711734640312,-983.86654576,0.00031193,2]
[320996754,1711734640324,-983.86654576,0.00031193,2]
[320996758,1711734640334,-983.86654576,0.00031193,2]
[320996760,1711734640344,-983.86654576,0.00031193,2]
[320996764,1711734640354,-983.86654576,0.00031193,2]
[320996767,1711734640364,-983.86654576,0.00031193,2]
[320996768,1711734640374,-983.86654576,0.00031193,2]
[320996773,1711734640383,-983.86654576,0.00031193,2]
[320996775,1711734640393,-983.86654576,0.00031193,2]
[320996778,1711734640402,-983.86654576,0.00031193,2]
[320996779,1711734640412,-983.86654576,0.00031193,2]
[320996781,1711734640421,-983.86654576,0.00031193,2]
[320996783,1711734640431,-983.86654576,0.00031193,2]
[320996786,1711734640440,-983.86654576,0.00031193,2]
[320996787,1711734640451,-983.86654576,0.00031193,2]
[320996789,1711734640461,-983.86654576,0.00031193,2]
[320996791,1711734640470,-983.86654576,0.00031193,2]
[320996794,1711734640480,-983.86654576,0.00031193,2]
[320996796,1711734640490,-983.86654576,0.00031193,2]
[320996797,1711734640500,-983.86654576,0.00031193,2]
[320996800,1711734640510,-983.86654576,0.00031193,2]
[320996802,1711734640519,-983.86654576,0.00031193,2]
[320996804,1711734640529,-983.86654576,0.00031193,2]
[320996806,1711734640539,-983.86654576,0.00031193,2]
[320996808,1711734640551,-983.86654576,0.00031193,2]
[320996810,1711734640560,-983.86654576,0.00031193,2]
[320996812,1711734640570,-983.86654576,0.00031193,2]
[320996814,1711734640580,-983.86654576,0.00031193,2]
[320996816,1711734640590,-983.86654576,0.00031193,2]
[320996818,1711734640600,-983.86654576,0.00031193,2]
[320996820,1711734640610,-983.86654576,0.00031193,2]
[320996822,1711734640621,-983.86654576,0.00031193,2]
[320996824,1711734640630,-983.86654576,0.00031193,2]
[320996826,1711734640640,-983.86654576,0.00031193,2]
[320996828,1711734640651,-983.86654576,0.00031193,2]
[320996830,1711734640660,-983.86654576,0.00031193,2]
[320996832,1711734640669,-874.34095769,0.00031193,2]
[320997105,1711734643219,-109.52558807,0.00031193,2]
[320997106,1711734643229,-983.86654576,0.00031193,2]
[320997107,1711734643238,-983.86654576,0.00031193,2]
[320997108,1711734643248,-983.86654576,0.00031193,2]
[320997109,1711734643257,-983.86654576,0.00031193,2]
[320997110,1711734643266,-983.86654576,0.00031193,2]
[320997111,1711734643276,-983.86654576,0.00031193,2]
[320997112,1711734643285,-253.095275,0.00032999,2]
[320997113,1711734643294,-253.095275,0.00034998,2]
[320997114,1711734643303,-13903.2436644,0.00034999,4]
[320997115,1711734643315,-15669.85447598,0.00034999,4]
[320997116,1711734643325,-151.0,0.00034999,2]
[320997117,1711734643335,-608.920284,0.00034999,2]
[320997118,1711734643345,-608.920284,0.00034999,2]
[320997119,1711734643354,-208.279948,0.00034999,2]
[320997120,1711734643363,-208.279948,0.00034999,2]
[320997121,1711734643372,-151.0,0.00034999,2]
[320997122,1711734643381,-325.99218089,0.00034999,2]
[320997123,1711734643392,-180.89978511,0.00034999,2]
[320997124,1711734643401,-506.891966,0.00034999,2]
[320997125,1711734643410,-151.0,0.00034999,2]
[320997126,1711734643419,-151.0,0.00034999,2]
[320997127,1711734643429,-151.0,0.00034999,2]
[320997128,1711734643438,-253.095275,0.00034999,2]
[320997129,1711734643447,-982.47041794,0.00035,30]
[320997130,1711734643463,-19017.52958206,0.00035,30]
[320997131,1711734643473,-6907.98184536,0.00035,4]
[320997132,1711734643482,-593.98094654,0.00035,2]
[320997133,1711734643491,-500.0,0.00035,2]
[320997135,1711734643501,-1000.0,0.00035,2]
[320997137,1711734643510,-1500.0,0.00035,2]
[320997139,1711734643519,-666.53386111,0.00035,4]
[320997141,1711734643528,-253.458252,0.00035,2]
[320997143,1711734643537,-608.920284,0.00035,2]
[320997145,1711734643548,-608.920284,0.00035,2]
[320997146,1711734643558,-208.279948,0.00035,2]
[320997148,1711734643568,-208.279948,0.00035,2]
[320997149,1711734643577,-151.0,0.00035,2]
[320997150,1711734643587,-506.891966,0.00035,2]
[320997151,1711734643597,-506.891966,0.00035,2]
[320997152,1711734643606,-151.0,0.00035,2]
[320997153,1711734643615,-151.0,0.00035,2]
[320997154,1711734643624,-151.0,0.00035,2]
[320997155,1711734643634,-253.095275,0.00035,2]
[320997156,1711734643642,-736.00014886,0.000351,2]
[320997157,1711734643651,-2046.856437,0.00035178,120]
[320997158,1711734643660,-677.62495111,0.00035529,2]
[320997159,1711734643670,-354.04465049,0.00036,2]
[320997160,1711734643679,-845.75418495,0.00036094,4]
[320997161,1711734643688,-254.8473256,0.0003624,2]
[320997162,1711734643696,-587.38338379,0.00037,30]
[320997163,1711734643705,-1440.0,0.00037,120]
[320997164,1711734643714,-1093.77043158,0.0003707,31]
[320997165,1711734643723,-333.0,0.00037195,2]
[320997166,1711734643732,-622.88124756,0.00037306,2]
[320997167,1711734643740,-500.0,0.000375,2]
[320997168,1711734643750,-1000.0,0.000375,2]
[320997169,1711734643758,-222.82026181,0.00037983,4]
[320997170,1711734643767,-620.49467544,0.00037984,4]
[320997171,1711734643776,-307.02875756,0.00037985,4]
[320997172,1711734643784,-233.53178036,0.00037985,4]
[320997173,1711734643793,-796.41815272,0.00037985,4]
[320997174,1711734643802,-1017.21718483,0.00037985,4]
[320997175,1711734643810,-509.20335741,0.00037986,4]
[320997176,1711734643819,-291.79390991,0.00037986,4]
[320997177,1711734643829,-268.19225338,0.00037986,4]
[320997178,1711734643838,-306.5919939,0.00037986,4]
[320997179,1711734643847,-463.57364644,0.00037986,4]
[320997180,1711734643857,-694.24650102,0.00037986,4]
[320997181,1711734643866,-662.77602843,0.00037986,4]
[320997182,1711734643876,-402.87327255,0.00037986,2]
[320997183,1711734643885,-288.12767861,0.00037986,2]
[320997184,1711734643894,-446.70437468,0.00037986,4]
[320997185,1711734643904,-830.97430032,0.00037986,4]
[320997186,1711734643913,-608.920284,0.00037986,2]
[320997187,1711734643922,-608.920284,0.00037986,2]
[320997188,1711734643931,-208.279948,0.00037986,2]
[320997189,1711734643941,-208.279948,0.00037986,2]
[320997190,1711734643949,-151.0,0.00037986,2]
[320997191,1711734643958,-506.891966,0.00037986,2]
[320997193,1711734643967,-506.891966,0.00037986,2]
[320997194,1711734643977,-151.0,0.00037986,2]
[320997196,1711734643986,-151.0,0.00037986,2]
[320997198,1711734643995,-151.0,0.00037986,2]
[320997206,1711734644055,-253.095275,0.00037986,2]
[320997209,1711734644072,-155.7484645,0.00037987,4]
[320997210,1711734644081,-183.83825319,0.00037987,4]
[320997212,1711734644090,-298.44863155,0.00037991,4]
[320997214,1711734644099,-570.17779531,0.00037992,4]
[320997216,1711734644108,-170.72364554,0.00037992,2]
[320997218,1711734644117,-608.53071941,0.00037994,4]
[320997220,1711734644126,-502.44085312,0.00037994,4]
[320997222,1711734644135,-155.09283284,0.00037994,4]
[320997224,1711734644144,-155.14583709,0.00037995,4]
[320997225,1711734644154,-4631.78380535,0.00037995,4]
[320997226,1711734644164,-39988.96301217,0.00038,2]
[320997228,1711734644175,-608.920284,0.00038,2]
[320997230,1711734644184,-608.920284,0.00038,2]
[320997231,1711734644193,-208.279948,0.00038,2]
[320997232,1711734644203,-208.279948,0.00038,2]
[320997234,1711734644212,-151.0,0.00038,2]
[320997236,1711734644221,-506.891966,0.00038,2]
[320997238,1711734644230,-506.891966,0.00038,2]
[320997240,1711734644239,-151.0,0.00038,2]
[320997241,1711734644249,-151.0,0.00038,2]
[320997243,1711734644260,-155.433122,0.00038,2]
[320997245,1711734644268,-253.095275,0.00038,2]
[320997247,1711734644277,-507.64955861,0.00038356,2]
[320997249,1711734644286,-166.95776954,0.00039835,9]
[320997251,1711734644295,-155.14739002,0.0004,4]
[320997253,1711734644304,-155.14739002,0.0004,2]
[320997254,1711734644320,-3280.36526821,0.0004,120]
[320997256,1711734644329,-3021.35101679,0.0004,15]
[320997258,1711734644337,-4778.76230334,0.0004,2]
[320997260,1711734644346,-30000.0,0.0004,2]
[320997261,1711734644355,-6023.78958708,0.0004,2]
[320997263,1711734644365,-488.0,0.0004,2]
[320997265,1711734644374,-3953.54765651,0.0004,2]
[320997267,1711734644383,-608.920284,0.0004,2]
[320997269,1711734644392,-608.920284,0.0004,2]
[320997271,1711734644401,-208.279948,0.0004,2]
[320997273,1711734644410,-208.279948,0.0004,2]
[320997275,1711734644419,-169.258562,0.0004,2]
[320997277,1711734644428,-200.0,0.0004,2]
[320997279,1711734644437,-506.891966,0.0004,2]
[320997280,1711734644446,-506.891966,0.0004,2]
[320997282,1711734644455,-151.0,0.0004,2]
[320997284,1711734644464,-153.065987,0.0004,2]
[320997286,1711734644473,-608.920284,0.00040129,2]
[320997288,1711734644485,-608.920284,0.00040129,2]
[320997290,1711734644494,-608.920284,0.00040129,2]
[320997292,1711734644504,-608.920284,0.00040129,2]
[320997294,1711734644513,-208.279948,0.00040129,2]
[320997296,1711734644522,-208.279948,0.00040129,2]
[320997298,1711734644530,-208.279948,0.00040129,2]
[320997300,1711734644539,-208.279948,0.00040129,2]
[320997302,1711734644551,-163.17032682,0.00040129,30]
[320997304,1711734644560,-146770.0,0.0004013,2]
[320997306,1711734644568,-608.920284,0.0004013,2]
[320997308,1711734644577,-608.920284,0.0004013,2]
[320997310,1711734644586,-208.279948,0.0004013,2]
[320997312,1711734644595,-208.279941,0.0004013,2]
[320997314,1711734644604,-506.891966,0.0004013,2]
[320997316,1711734644612,-506.891966,0.0004013,2]
[320997318,1711734644621,-151.0,0.0004013,2]
[320997319,1711734644631,-200.30384558,0.00040186,2]
[320997321,1711734644640,-185.66672163,0.000402,90]
[320997323,1711734644648,-2046.856437,0.00040203,120]
[320997325,1711734644658,-1000.0,0.00040454,2]
[320997327,1711734644667,-1000.0,0.00040478,2]
[320997329,1711734644676,-208.10488773,0.00040491,2]
[320997331,1711734644685,-300.46749993,0.00040507,2]
[320997333,1711734644694,-1000.0,0.00040521,2]
[320997335,1711734644703,-1000.0,0.00040522,2]
[320997337,1711734644712,-458.85729217,0.00040526,4]
[320997339,1711734644721,-1000.0,0.00040581,2]
[320997341,1711734644730,-1000.0,0.00040586,2]
[320997343,1711734644740,-155.37110704,0.0004059,2]
[320997345,1711734644749,-270.68452976,0.0004059,4]
[320997347,1711734644759,-274.85913497,0.0004059,4]
[320997349,1711734644768,-156.70730434,0.0004059,4]
[320997351,1711734644777,-155.27032593,0.0004059,4]
[320997353,1711734644786,-155.36274546,0.0004059,4]
[320997355,1711734644795,-171.60839442,0.0004059,4]
[320997357,1711734644804,-483.31287366,0.0004059,4]
[320997359,1711734644813,-263.79832629,0.00040591,4]
[320997361,1711734644822,-155.14739002,0.00040592,41]
[320997363,1711734644831,-155.3227978,0.00040592,4]
[320997365,1711734644840,-1000.0,0.00040595,2]
[320997372,1711734644899,-1000.0,0.00040598,2]
[320997374,1711734644908,-1000.0,0.00040604,2]
[320997376,1711734644917,-1000.0,0.00040626,2]
[320997378,1711734644926,-155.52648771,0.00040626,4]
[320997380,1711734644935,-155.15360207,0.00040626,4]
[320997382,1711734644944,-3748.06828541,0.00040626,4]
[320997384,1711734644953,-1000.0,0.00040629,2]
[320997386,1711734644961,-506.891966,0.00040629,2]
[320997388,1711734644970,-506.891966,0.00040629,2]
[320997390,1711734644979,-1000.0,0.00040633,2]
[320997392,1711734644988,-283.971255,0.00040633,2]
[320997394,1711734644996,-1000.0,0.00040641,2]
[320997396,1711734645006,-1000.0,0.00040677,2]
[320997398,1711734645016,-608.920284,0.00040681,2]
[320997399,1711734645025,-608.920293,0.00040681,2]
[320997401,1711734645034,-1000.0,0.00040698,2]
[320997403,1711734645043,-155.63145113,0.00040726,4]
[320997405,1711734645052,-318.35740362,0.00040726,4]
[320997407,1711734645060,-192.42527995,0.00040726,4]
[320997409,1711734645070,-299.2948688,0.00040726,4]
[320997411,1711734645078,-240.88945792,0.00040726,4]
[320997413,1711734645087,-155.75518289,0.00040726,4]
[320997415,1711734645097,-200.80874792,0.00040726,2]
[320997417,1711734645106,-628.23840798,0.00040727,4]
[320997419,1711734645115,-181.17160852,0.00040727,4]
[320997421,1711734645124,-319.68340137,0.00040729,4]
[320997423,1711734645133,-208.84415989,0.0004078,4]
[320997425,1711734645142,-571.39929025,0.00040781,40]
[320997427,1711734645153,-2870.07558836,0.00040812,2]
[320997429,1711734645163,-5000.0,0.00040908,4]
[320997431,1711734645172,-11146.12894252,0.00040908,2]
[320997433,1711734645182,-263.09030592,0.00040908,2]
[320997435,1711734645191,-621.2728139,0.00040908,2]
[320997437,1711734645200,-3979.75334903,0.00040908,2]
[320997439,1711734645210,-1001.82366865,0.00040908,2]
[320997441,1711734645219,-9495.07273054,0.00040908,2]
[320997443,1711734645229,-68640.0750262,0.00040908,2]